bitfinex/quotes_SOLUSD_20241210
["timestamp","ask_amount","ask_price","bid_price","bid_amount"]
[1733799135519,0.12549,214.94,214.89,0.5606986]
[1733799136919,20.12549,214.94,214.89,0.5606986]
[1733799137320,0.12549,214.94,214.89,0.5606986]
[1733799137651,0.12549,214.87,214.69,37.03888438]
[1733799137924,0.12549,214.87,214.68,2.1945986]
[1733799138120,20.0,214.85,214.68,2.1945986]
[1733799138319,0.12549,214.82,214.68,2.1945986]
[1733799138717,20.0,214.88,214.69,37.03888438]
[1733799138951,6.417,214.91,214.76,37.03888438]
[1733799139123,6.417,214.91,214.78,37.03888438]
[1733799139326,6.417,214.91,214.77,37.03888438]
[1733799139631,6.417,214.91,214.78,37.03888438]
[1733799139837,6.417,214.91,214.82,37.03888438]
[1733799140163,6.417,215.0,214.9,37.03888438]
[1733799140326,6.417,215.0,214.89,37.03888438]
[1733799140520,6.417,215.0,214.88,37.03888438]
[1733799140724,6.417,215.0,214.92,37.03888438]
[1733799140939,6.417,215.06,214.95,37.03888438]
[1733799141347,6.417,215.06,214.98,37.03888438]
[1733799141653,6.417,215.06,214.91,37.03888438]
[1733799141835,6.417,215.06,214.84,1.6339]
[1733799141836,6.417,215.06,214.89,37.03888438]
[1733799142038,6.417,215.06,214.86,37.03888438]
[1733799142228,6.417,215.06,214.84,38.67278438]
[1733799142545,20.0,215.03,214.85,37.03888438]
[1733799142736,20.0,215.02,214.84,1.6339]
[1733799142925,0.12549,215.01,214.85,312.0]
[1733799143137,0.12549,215.01,214.83,37.03888438]
[1733799143459,0.12549,214.96,214.77,37.03888438]
[1733799143640,0.12549,214.96,214.76,1.6339]
[1733799143836,0.12549,214.94,214.76,1.6339]
[1733799144333,0.12549,214.94,214.8,37.03888438]
[1733799144532,0.12549,214.96,214.78,37.03888438]
[1733799144732,0.37,215.0,214.83,37.03888438]
[1733799144933,0.37,215.0,214.81,37.03888438]
[1733799145638,10.0,214.99,214.8,37.03888438]
[1733799145839,10.0,214.99,214.83,37.03888438]
[1733799146047,20.0,214.96,214.83,37.03888438]
[1733799146447,0.12549,214.95,214.83,37.03888438]
[1733799147160,10.0,215.05,214.87,37.03888438]
[1733799147329,0.37,215.07,214.89,37.03888438]
[1733799147528,18.633687,215.05,214.91,37.03888438]
[1733799147746,0.37,215.07,214.87,37.03888438]
[1733799147948,18.633091,215.05,214.89,37.03888438]
[1733799148144,18.633091,215.05,214.93,37.03888438]
[1733799148346,10.0,215.13,214.93,37.03888438]
[1733799148947,10.0,215.1,214.91,37.03888438]
[1733799149155,10.0,215.07,214.87,37.03888438]
[1733799149349,0.12549,215.02,214.87,37.03888438]
[1733799149658,0.12549,215.02,214.77,23.776884]
[1733799149659,0.12549,215.0,214.85,37.03888438]
[1733799149835,0.12549,215.0,214.83,37.03888438]
[1733799150036,0.12549,215.0,214.81,37.03888438]
[1733799150037,20.0,214.98,214.81,37.03888438]
[1733799150246,20.12549,214.97,214.79,37.03888438]
[1733799150456,6.5999,214.93,214.77,37.03888438]
[1733799150649,20.0,214.9,214.77,37.03888438]
[1733799151463,0.12549,214.89,214.77,37.03888438]
[1733799151766,0.12549,214.89,214.73,37.03888438]
[1733799151956,20.0,214.9,214.77,37.03888438]
[1733799152445,0.12549,214.89,214.73,37.03888438]
[1733799153062,20.12549,214.89,214.73,37.03888438]
[1733799153373,0.12549,214.86,214.69,37.03888438]
[1733799153866,20.12549,214.86,214.69,37.03888438]
[1733799155053,0.12549,214.84,214.68,312.5606986]
[1733799155454,0.12549,214.82,214.68,312.5606986]
[1733799155632,20.12549,214.82,214.68,312.5606986]
[1733799156150,13.86,214.91,214.72,37.03888438]
[1733799156343,0.12549,214.92,214.74,37.03888438]
[1733799156962,10.0,214.89,214.7,37.03888438]
[1733799157143,10.0,214.9,214.7,37.03888438]
[1733799157346,0.12549,214.92,214.73,37.03888438]
[1733799157536,6.5999,214.93,214.75,37.03888438]
[1733799159048,6.5999,214.93,214.79,37.03888438]
[1733799159270,6.5999,214.93,214.81,37.03888438]
[1733799160554,6.5999,214.93,214.77,37.03888438]
[1733799160741,20.0,214.9,214.77,37.03888438]
[1733799161148,20.0,214.9,214.8,37.03888438]
[1733799161975,6.5999,214.93,214.82,37.03888438]
[1733799162280,23.86,215.07,214.73,1.6497]
[1733799162281,6.5811,214.99,214.87,37.03888438]
[1733799162479,6.5811,214.99,214.83,37.03888438]
[1733799162650,6.5811,214.99,214.86,37.03888438]
[1733799162858,6.5811,214.99,214.86,349.03888438]
[1733799163581,6.5811,214.99,214.78,23.776884]
[1733799163582,6.5811,214.99,214.89,37.03888438]
[1733799163875,6.5811,214.99,214.91,37.03888438]
[1733799164169,6.5811,214.99,214.9,37.03888438]
[1733799164360,6.5811,214.99,214.88,37.03888438]
[1733799164758,20.0,214.96,214.87,37.03888438]
[1733799165072,20.0,214.96,214.86,37.03888438]
[1733799165455,20.0,214.96,214.85,37.03888438]
[1733799166057,20.0,214.96,214.86,37.03888438]
[1733799166664,20.0,214.96,214.86,349.03888438]
[1733799167186,0.12549,214.95,214.82,37.03888438]
[1733799167688,0.12549,214.95,214.8,37.03888438]
[1733799168191,0.12549,214.95,214.81,37.03888438]
[1733799168983,20.0,214.96,214.83,37.03888438]
[1733799169183,20.0,214.96,214.76,23.776884]
[1733799169361,20.0,214.96,214.83,37.03888438]
[1733799170089,20.0,214.96,214.83,349.03888438]
[1733799171361,0.12549,214.95,214.83,37.03888438]
[1733799172059,0.12549,214.95,214.73,1.6497]
[1733799172060,0.12549,214.95,214.81,37.03888438]
[1733799172390,0.12549,214.95,214.79,37.03888438]
[1733799172585,0.12549,214.93,214.79,37.03888438]
[1733799173587,0.12549,214.95,214.79,37.03888438]
[1733799173763,0.12549,214.93,214.79,37.03888438]
[1733799174155,0.12549,214.93,214.78,37.03888438]
[1733799174356,0.12549,214.93,214.78,312.0]
[1733799174357,6.5811,214.92,214.78,312.0]
[1733799174573,6.5811,214.92,214.73,1.6497]
[1733799174574,0.12549,214.88,214.73,1.6497]
[1733799174831,0.12549,214.88,214.74,37.03888438]
[1733799174988,0.12549,214.88,214.75,37.03888438]
[1733799175200,20.0,214.89,214.77,22.90337101]
[1733799175359,20.0,214.89,214.78,22.90337101]
[1733799175561,20.0,214.89,214.77,22.90337101]
[1733799177563,6.5811,214.92,214.77,312.0]
[1733799177769,6.5811,214.92,214.84,22.90337101]
[1733799177967,6.5811,214.92,214.83,22.90337101]
[1733799178560,6.5811,214.92,214.84,22.90337101]
[1733799178971,6.5811,214.92,214.83,22.90337101]
[1733799179383,6.5811,214.97,214.89,22.90337101]
[1733799179700,6.5811,214.97,214.9,22.90337101]
[1733799180063,6.5811,214.97,214.92,22.90337101]
[1733799180270,20.0,215.13,214.83,22.90337101]
[1733799180271,6.5811,215.02,214.94,22.90337101]
[1733799180575,6.5811,215.02,214.9,22.90337101]
[1733799180776,6.5811,215.02,214.91,22.90337101]
[1733799181097,6.5811,215.02,214.91,334.90337101]
[1733799181399,6.5811,215.02,214.87,22.90337101]
[1733799181587,20.0,214.99,214.87,22.90337101]
[1733799181981,20.0,214.99,214.88,22.90337101]
[1733799182590,20.0,214.99,214.9,22.90337101]
[1733799182973,6.5811,215.02,214.9,22.90337101]
[1733799183970,6.5811,215.02,214.91,22.90337101]
[1733799184274,6.5811,215.02,214.95,22.90337101]
[1733799184475,6.5811,215.02,214.95,334.90337101]
[1733799184678,6.5811,215.08,214.98,22.90337101]
[1733799184886,6.5811,215.08,215.02,22.90337101]
[1733799185477,6.5811,215.08,215.01,22.90337101]
[1733799185677,6.5811,215.08,214.97,22.90337101]
[1733799185977,6.5811,215.08,214.96,22.90337101]
[1733799186181,20.0,215.05,214.97,22.90337101]
[1733799186388,6.5811,215.08,214.99,22.90337101]
[1733799186578,6.5811,215.08,215.0,22.90337101]
[1733799186783,6.5811,215.08,214.95,1.6536]
[1733799186974,6.5811,215.08,214.94,22.90337101]
[1733799187174,6.5811,215.08,214.92,22.90337101]
[1733799187778,20.0,215.05,214.92,22.90337101]
[1733799188569,0.12549,215.04,214.92,22.90337101]
[1733799188809,20.0,215.01,214.9,22.90337101]
[1733799188984,23.902374,215.04,214.88,22.90337101]
[1733799188985,20.0,214.97,214.88,22.90337101]
[1733799189172,20.0,214.97,214.89,22.90337101]
[1733799189372,20.0,214.97,214.91,22.90337101]
[1733799189569,20.0,215.03,214.92,22.90337101]
[1733799189773,0.37,215.15,214.96,22.90337101]
[1733799189973,1.85225391,215.12,214.96,22.90337101]
[1733799190191,0.12549,215.07,214.94,22.90337101]
[1733799190373,1.85225391,215.12,214.96,22.90337101]
[1733799190576,0.12549,215.07,214.94,22.90337101]
[1733799190998,23.902374,215.07,214.94,22.90337101]
[1733799191181,23.776884,215.03,214.94,22.90337101]
[1733799191386,20.0,215.0,214.94,22.90337101]
[1733799191690,20.0,215.0,214.92,22.90337101]
[1733799191893,20.0,214.96,214.88,22.90337101]
[1733799192084,20.0,214.96,214.86,22.90337101]
[1733799192085,23.776884,214.95,214.86,22.90337101]
[1733799192401,20.0,214.92,214.84,22.90337101]
[1733799192597,20.0,214.92,214.82,22.90337101]
[1733799193603,20.0,214.88,214.8,22.90337101]
[1733799193905,20.0,214.84,214.77,22.90337101]
[1733799194285,20.0,214.84,214.75,22.90337101]
[1733799194486,20.0,214.84,214.76,22.90337101]
[1733799194878,20.0,214.84,214.73,1.52]
[1733799194879,20.0,214.84,214.74,22.90337101]
[1733799195407,23.776884,214.91,214.78,22.90337101]
[1733799195580,20.0,214.88,214.78,22.90337101]
[1733799196306,20.0,214.84,214.76,22.90337101]
[1733799196880,20.0,214.88,214.76,22.90337101]
[1733799197081,20.0,214.88,214.78,22.90337101]
[1733799197325,20.0,214.88,214.8,22.90337101]
[1733799197503,20.0,214.88,214.79,22.90337101]
[1733799198494,20.0,214.88,214.75,22.90337101]
[1733799198809,20.0,214.88,214.78,22.90337101]
[1733799199106,20.0,214.88,214.79,22.90337101]
[1733799199281,20.0,214.88,214.78,22.90337101]
[1733799199696,23.776884,214.94,214.81,22.90337101]
[1733799200196,6.5681,214.95,214.83,22.90337101]
[1733799200506,6.5681,214.95,214.85,22.90337101]
[1733799200708,6.5681,215.01,214.89,22.90337101]
[1733799200905,6.5681,215.01,214.94,22.90337101]
[1733799201413,6.5681,215.01,214.96,22.90337101]
[1733799201614,6.5681,215.07,214.96,22.90337101]
[1733799201795,6.5681,215.07,214.95,22.90337101]
[1733799202490,20.0,215.04,214.91,22.90337101]
[1733799202700,20.0,215.04,214.89,22.90337101]
[1733799202879,20.0,215.04,214.93,22.90337101]
[1733799203083,6.5681,215.07,214.95,22.90337101]
[1733799203277,6.5681,215.07,214.96,22.90337101]
[1733799203704,6.5681,215.07,214.93,22.90337101]
[1733799204000,6.5681,215.07,214.92,22.90337101]
[1733799204202,23.776884,215.06,214.91,22.90337101]
[1733799204395,23.776884,215.06,214.88,22.90337101]
[1733799204582,20.0,214.99,214.88,22.90337101]
[1733799204780,11.04868219,214.9,214.88,22.90337101]
[1733799204977,11.04868219,214.9,214.89,22.90337101]
[1733799205584,11.04868219,214.9,214.89,335.02886101]
[1733799206015,11.04868219,214.9,214.89,23.02886101]
[1733799206407,6.5681,215.07,214.92,20.0]
[1733799206707,6.5681,215.07,214.99,22.90337101]
[1733799206917,6.5681,215.07,215.0,22.90337101]
[1733799207207,6.3003,215.12,215.02,22.90337101]
[1733799207401,6.3003,215.12,215.04,22.90337101]
[1733799207994,6.3003,215.12,215.03,22.90337101]
[1733799208215,6.3003,215.12,215.0,22.90337101]
[1733799208809,20.0,215.09,215.0,22.90337101]
[1733799209006,20.0,215.09,215.0,334.90337101]
[1733799210492,20.0,215.09,214.97,22.90337101]
[1733799211000,0.12549,215.08,214.91,22.90337101]
[1733799211194,20.0,215.09,214.95,22.90337101]
[1733799211407,20.0,215.09,214.96,22.90337101]
[1733799211607,20.0,215.09,214.95,22.90337101]
[1733799212604,0.12549,215.08,214.94,22.90337101]
[1733799214115,0.12549,215.08,214.91,22.90337101]
[1733799214289,0.12549,215.08,214.95,22.90337101]
[1733799214716,20.0,215.09,214.97,22.90337101]
[1733799214898,20.0,215.09,214.96,22.90337101]
[1733799215593,0.12549,215.08,214.94,22.90337101]
[1733799215800,0.12549,215.08,214.93,22.90337101]
[1733799216007,0.12549,215.08,214.92,22.90337101]
[1733799216916,0.12549,215.08,214.91,22.90337101]
[1733799217215,0.12549,215.08,214.91,334.90337101]
[1733799218016,20.0,215.04,214.89,22.90337101]
[1733799218312,20.0,215.04,214.87,0.12549]
[1733799218313,20.0,215.04,214.91,22.90337101]
[1733799218999,20.0,215.04,214.92,22.90337101]
[1733799219208,6.3003,215.07,214.96,22.90337101]
[1733799220402,20.0,215.04,214.94,22.90337101]
[1733799221100,20.0,215.04,214.94,334.90337101]
[1733799221295,20.0,215.04,214.92,22.90337101]
[1733799221602,20.0,215.04,214.9,22.90337101]
[1733799222009,1.6212,215.03,214.9,22.90337101]
[1733799224428,0.8721743,215.02,214.9,334.90337101]
[1733799224803,0.8721743,215.02,214.91,0.69775428]
[1733799225005,0.8721743,215.02,214.92,22.90337101]
[1733799225713,0.8721743,215.02,214.91,22.90337101]
[1733799226454,6.2545,215.01,214.88,0.69772832]
[1733799226607,6.2545,215.01,214.82,22.90337101]
[1733799226608,0.12549,214.97,214.82,22.90337101]
[1733799226922,0.12549,214.97,214.8,1.6063]
[1733799226923,0.99801249,214.97,214.8,0.69801799]
[1733799227130,0.99801249,214.97,214.74,1.6063]
[1733799227131,7.8757,214.96,214.78,22.90337101]
[1733799227330,20.0,214.93,214.79,0.69809934]
[1733799227515,0.87261528,214.92,214.78,0.69809222]
[1733799227716,0.12549,214.91,214.78,0.69809222]
[1733799228013,0.12549,214.91,214.76,0.69818271]
[1733799228214,20.0,214.87,214.76,0.69818271]
[1733799228424,0.87278082,214.86,214.76,0.69818271]
[1733799228723,1.6212,214.85,214.76,0.69818271]
[1733799228920,1.6212,214.85,214.74,0.69822346]
[1733799229634,1.6212,214.85,214.77,22.90337101]
[1733799229844,20.0,214.87,214.78,23.60144828]
[1733799230139,20.0,214.87,214.8,22.90337101]
[1733799230338,20.0,214.87,214.82,22.90337101]
[1733799230518,6.2545,214.95,214.86,23.02886101]
[1733799230839,6.2545,214.95,214.87,23.60115281]
[1733799230999,6.2545,214.95,214.88,22.90337101]
[1733799231215,6.2545,214.95,214.89,23.60109876]
[1733799231411,6.2545,215.02,214.91,22.90337101]
[1733799231641,6.2545,215.02,214.92,0.69765778]
[1733799231820,6.2545,215.02,214.92,23.60102879]
[1733799232136,0.8719828,215.01,214.92,0.69765778]
[1733799232339,6.2545,215.02,214.92,0.69765778]
[1733799233416,6.2545,215.08,214.98,22.90337101]
[1733799233634,6.2545,215.08,214.99,0.69740944]
[1733799234651,20.0,215.05,214.99,0.69740944]
[1733799235225,20.0,215.05,214.93,23.02886101]
[1733799235534,20.0,215.05,214.94,0.69757776]
[1733799235919,0.87199886,215.04,214.9,23.60097009]
[1733799236418,20.0,215.05,214.93,22.90337101]
[1733799236614,20.0,215.05,214.91,0.69758367]
[1733799236615,0.99746958,215.04,214.91,0.69758367]
[1733799236942,0.99746958,215.04,214.8,16.4439]
[1733799236943,20.0,215.0,214.85,22.90337101]
[1733799237249,0.87220804,214.99,214.86,23.60113744]
[1733799237454,20.0,215.0,214.86,23.60113744]
[1733799237926,20.0,215.0,214.87,0.12549]
[1733799238124,20.0,215.0,214.88,0.69777207]
[1733799238637,0.87221684,214.99,214.88,0.69777207]
[1733799238846,20.0,215.0,214.88,0.69777207]
[1733799239738,20.0,215.0,214.89,0.12549]
[1733799239939,20.0,215.0,214.9,0.69770453]
[1733799240845,0.87216544,214.99,214.88,312.0]
[1733799241036,0.87216544,214.99,214.89,0.6977867]
[1733799242759,0.87222376,214.99,214.89,0.6977867]
[1733799243625,20.0,215.0,214.89,0.6977867]
[1733799243828,0.87221912,214.99,214.89,0.6977867]
[1733799244053,20.0,214.94,214.81,22.90337101]
[1733799244241,0.87246915,214.93,214.82,0.69797532]
[1733799244948,6.4253,214.97,214.9,22.90337101]
[1733799245126,6.4253,214.97,214.88,22.90337101]
[1733799245329,0.8723363,214.96,214.84,23.60115471]
[1733799245526,0.8723363,214.96,214.84,0.6977837]
[1733799245824,0.8723363,214.96,214.83,0.69797537]
[1733799246241,20.0,214.94,214.83,0.69797537]
[1733799246448,0.8724671,214.93,214.83,0.69797537]
[1733799246646,1.5845,214.92,214.79,22.90337101]
[1733799246961,0.87257832,214.91,214.76,22.90337101]
[1733799247251,20.0,214.87,214.75,0.69821964]
[1733799247566,0.87281019,214.86,214.75,0.69821964]
[1733799247719,0.87281019,214.86,214.71,22.90337101]
[1733799247925,0.12549,214.85,214.69,22.90337101]
[1733799248525,0.12549,214.85,214.7,23.60173414]
[1733799248938,0.87281019,214.86,214.7,23.60173414]
[1733799249146,8.13529,214.85,214.68,23.46406961]
[1733799249357,20.0,214.82,214.68,0.5606986]
[1733799249557,0.87311511,214.81,214.72,22.90337101]
[1733799249766,8.0098,214.85,214.77,22.90337101]
[1733799250046,6.4253,214.85,214.8,22.90337101]
[1733799250651,6.4253,214.85,214.78,335.60146942]
[1733799250841,6.4253,214.85,214.78,334.90337101]
[1733799252030,6.4253,214.85,214.79,0.69816661]
[1733799252232,8.2101,214.9,214.81,22.90337101]
[1733799252432,8.2101,214.9,214.8,22.90337101]
[1733799252644,8.2101,214.9,214.81,0.69801105]
[1733799252845,8.2101,214.9,214.81,23.60138206]
[1733799253233,6.6256,214.9,214.84,22.90337101]
[1733799253433,6.6256,214.9,214.85,0.69792018]
[1733799253856,6.6256,214.9,214.81,22.90337101]
[1733799254032,6.6256,214.9,214.79,22.90337101]
[1733799254231,6.6256,214.9,214.8,23.60142731]
[1733799254435,20.0,214.87,214.83,22.90337101]
[1733799254647,6.6256,214.9,214.83,22.90337101]
[1733799254851,6.6256,214.9,214.84,0.69792909]
[1733799255265,6.6256,214.9,214.84,312.69792909]
[1733799255566,6.6256,214.9,214.8,22.90337101]
[1733799255857,20.0,214.87,214.81,0.69804666]
[1733799256063,20.0,214.87,214.75,0.69809265]
[1733799256243,20.0,214.83,214.78,22.90337101]
[1733799256433,20.0,214.83,214.76,22.90337101]
[1733799256633,20.0,214.83,214.74,22.90337101]
[1733799256845,20.0,214.83,214.75,0.69826451]
[1733799257274,20.0,214.79,214.71,22.90337101]
[1733799257560,20.0,214.78,214.69,0.69827994]
[1733799257769,20.87298932,214.78,214.69,0.69827994]
[1733799258266,20.87298932,214.78,214.68,7.72873231]
[1733799258441,20.0,214.74,214.68,7.72873231]
[1733799259342,20.0,214.74,214.68,0.5606986]
[1733799259954,0.87315339,214.73,214.68,0.5606986]
[1733799261469,20.0,214.74,214.68,0.5606986]
[1733799262046,20.0,214.78,214.68,1.25927526]
[1733799262462,0.87308524,214.77,214.68,1.25927526]
[1733799262864,0.87308524,214.77,214.68,0.5606986]
[1733799263071,20.0,214.78,214.68,0.5606986]
[1733799263378,23.776884,214.76,214.68,0.5606986]
[1733799263545,20.0,214.73,214.68,0.5606986]
[1733799263940,0.87329177,214.72,214.68,0.5606986]
[1733799264838,23.776884,214.76,214.68,0.5606986]
[1733799265153,7.49893186,214.81,214.68,0.5606986]
[1733799265154,20.0,214.78,214.68,0.5606986]
[1733799265356,7.49893186,214.81,214.68,0.5606986]
[1733799265357,6.6256,214.81,214.68,0.5606986]
[1733799265681,6.6256,214.81,214.72,23.02886101]
[1733799265882,1.5715,214.83,214.73,0.69819117]
[1733799267475,23.776884,214.82,214.73,0.69819117]
[1733799267676,6.4514,214.84,214.75,22.90337101]
[1733799267895,6.4514,214.84,214.76,23.60152378]
[1733799268050,6.4514,214.84,214.77,22.90337101]
[1733799268247,6.4514,214.89,214.79,22.90337101]
[1733799268569,6.4514,214.89,214.81,22.90337101]
[1733799268762,6.4514,214.89,214.82,0.69796987]
[1733799268959,6.4514,214.89,214.82,23.60134088]
[1733799269139,1.5059,214.93,214.82,23.60134088]
[1733799269340,1.5059,214.93,214.83,22.90337101]
[1733799269571,1.5059,214.93,214.84,0.69788065]
[1733799269757,6.4514,214.94,214.84,23.60125166]
[1733799269955,1.5059,214.98,214.89,22.90337101]
[1733799270152,1.5059,214.98,214.9,0.69776817]
[1733799270488,6.4514,215.0,214.9,23.60113918]
[1733799270687,0.44020458,215.02,214.93,22.90337101]
[1733799270848,0.44020458,215.02,214.94,23.60093086]
[1733799271179,0.44020458,215.02,214.86,22.90337101]
[1733799271379,0.44020458,215.02,214.85,0.69760726]
[1733799271380,0.87200908,215.01,214.83,23.60122038]
[1733799271558,0.87200908,215.01,214.83,0.69784937]
[1733799271758,23.902374,215.0,214.83,0.69784937]
[1733799271964,20.0,214.95,214.83,0.69784937]
[1733799272178,20.0,214.9,214.83,0.69784937]
[1733799272471,20.0,214.9,214.84,0.69798357]
[1733799272643,1.31268404,215.02,214.84,23.60135458]
[1733799272843,1.31268404,215.02,214.87,22.90337101]
[1733799273173,1.31268404,215.02,214.84,0.69798357]
[1733799273174,1.31268404,215.02,214.88,0.69779574]
[1733799273351,0.87227971,215.01,214.88,0.69779574]
[1733799273689,0.44020458,215.02,214.88,23.60116675]
[1733799273850,1.31238298,215.02,214.89,22.90337101]
[1733799274052,21.31238298,215.02,214.9,0.69774267]
[1733799274251,20.8721784,215.02,214.9,0.69774267]
[1733799274445,20.8721784,215.02,214.88,22.90337101]
[1733799274684,20.8721784,215.02,214.87,22.90337101]
[1733799274851,0.12549,215.01,214.84,22.90337101]
[1733799275050,26.3637,214.98,214.81,22.90337101]
[1733799275365,0.87245925,214.97,214.82,23.60133841]
[1733799275672,0.87245925,214.97,214.83,22.90337101]
[1733799275848,26.3637,214.98,214.88,22.90337101]
[1733799276043,26.3637,214.98,214.89,23.60116755]
[1733799277789,6.3637,214.98,214.89,23.60116755]
[1733799277962,0.87224567,215.06,214.93,22.90337101]
[1733799278155,6.3843,215.05,214.94,23.60095624]
[1733799278352,0.87199744,215.04,214.9,22.90337101]
[1733799278551,0.87199744,215.04,214.91,0.69770167]
[1733799278771,0.87199744,215.04,214.91,23.60107268]
[1733799279574,20.0,215.02,214.89,22.90337101]
[1733799279761,20.0,215.02,214.91,22.90337101]
[1733799279963,0.87223896,215.01,214.9,22.90337101]
[1733799280176,0.87223896,215.01,214.89,22.90337101]
[1733799280650,0.87223896,215.01,214.9,0.69777131]
[1733799280852,0.87223896,215.01,214.9,23.60114232]
[1733799281165,0.87223896,215.01,214.9,0.69777131]
[1733799281482,20.0,215.02,214.9,23.60114232]
[1733799281655,0.87212957,215.01,214.9,0.69777131]
[1733799282057,20.0,215.02,214.91,22.90337101]
[1733799282367,0.87210226,215.04,214.92,0.6976818]
[1733799283273,0.12549,215.03,214.92,0.6976818]
[1733799283480,20.0,215.02,214.92,0.6976818]
[1733799284171,20.0,215.02,214.89,22.90337101]
[1733799284172,0.8721328,215.01,214.89,22.90337101]
[1733799284573,0.8721328,215.01,214.88,22.90337101]
[1733799284883,0.8721328,215.01,214.89,0.6977806]
[1733799286883,0.8721328,215.01,214.89,23.60115161]
[1733799287413,0.12549,215.0,214.87,23.6011982]
[1733799287578,0.12549,214.98,214.87,0.69782719]
[1733799287773,8.76263995,214.97,214.81,22.90337101]
[1733799287958,0.12549,214.93,214.8,0.69787196]
[1733799288287,0.99808161,214.93,214.76,22.90337101]
[1733799288584,0.12549,214.88,214.75,23.6014443]
[1733799288770,0.99827581,214.88,214.75,23.6014443]
[1733799288963,0.99827581,214.88,214.77,22.90337101]
[1733799289281,0.99827581,214.88,214.78,0.69814155]
[1733799289588,20.0,214.89,214.78,23.60151256]
[1733799289791,20.0,214.89,214.79,22.90337101]
[1733799290367,20.0,214.89,214.73,0.69809007]
[1733799290368,20.0,214.89,214.78,22.90337101]
[1733799290576,20.0,214.89,214.79,0.698107]
[1733799291273,0.87266311,214.88,214.79,0.698107]
[1733799291673,20.0,214.89,214.79,0.698107]
[1733799292590,20.0,214.89,214.78,0.69811724]
[1733799293191,0.9981546,214.88,214.75,22.90337101]
[1733799293374,0.9981546,214.88,214.76,0.69819869]
[1733799293579,0.9981546,214.88,214.77,22.90337101]
[1733799293877,20.0,214.84,214.78,0.698162]
[1733799294094,6.3868,214.92,214.8,22.90337101]
[1733799294386,6.3868,214.92,214.82,22.90337101]
[1733799294579,6.3868,214.92,214.84,22.90337101]
[1733799295082,6.3868,214.92,214.83,22.90337101]
[1733799295481,20.0,214.89,214.82,23.60134237]
[1733799295698,20.0,214.89,214.79,312.0]
[1733799295699,0.87250285,214.88,214.79,312.0]
[1733799295902,0.87250285,214.88,214.78,22.90337101]
[1733799296273,0.87250285,214.88,214.73,0.69815596]
[1733799296274,0.87250285,214.88,214.76,22.90337101]
[1733799296474,23.776884,214.87,214.76,22.90337101]
[1733799296782,20.0,214.84,214.76,22.90337101]
[1733799297603,20.0,214.85,214.78,22.90337101]
[1733799297772,0.12549,214.91,214.79,23.60148494]
[1733799297980,20.0,214.87,214.8,22.90337101]
[1733799298280,0.87261349,214.89,214.8,22.90337101]
[1733799298478,70.20953193,215.24,214.81,0.69810158]
[1733799298479,0.87262697,214.96,214.81,0.69810158]
[1733799298685,0.87262697,214.96,214.83,22.90337101]
[1733799299499,0.87262697,214.96,214.82,23.60132499]
[1733799299702,20.0,214.89,214.82,23.60132499]
[1733799300097,0.87249479,215.01,214.83,22.90337101]
[1733799300294,0.87244415,214.96,214.84,0.69795532]
[1733799300602,18.22242101,215.11,214.84,0.69795532]
[1733799300603,1.5035,214.97,214.86,22.90337101]
[1733799300800,7.8903,214.97,214.87,23.60117504]
[1733799301092,7.8903,214.97,214.88,22.90337101]
[1733799301281,7.8903,214.97,214.92,22.90337101]
[1733799301282,6.3868,214.97,214.92,22.90337101]
[1733799301483,6.3868,214.97,214.93,0.69767287]
[1733799301888,6.3868,215.02,214.93,23.60104388]
[1733799302301,6.3868,215.02,214.94,22.90337101]
[1733799302474,6.3868,215.02,214.87,20.0]
[1733799302475,6.3868,215.02,214.96,22.90337101]
[1733799302815,6.3868,215.02,214.97,23.60089454]
[1733799303128,7.8903,215.1,215.0,22.90337101]
[1733799303394,7.8903,215.1,215.03,22.90337101]
[1733799303614,6.3868,215.1,215.04,23.60063964]
[1733799303976,6.3868,215.1,215.06,22.90337101]
[1733799304175,1.5035,215.16,215.06,22.90337101]
[1733799304377,7.8903,215.16,215.09,22.90337101]
[1733799304605,6.3868,215.22,215.12,22.90337101]
[1733799304781,6.3868,215.22,215.13,23.60038171]
[1733799304982,0.87130663,215.21,215.11,22.90337101]
[1733799305302,6.3868,215.22,215.12,23.60045757]